bitfinex/quotes_ETHUSD_20250511
["timestamp","ask_amount","ask_price","bid_price","bid_amount"]
[1746965377928,3.95650097,2527.5,2527.1,2.675]
[1746965378323,3.95688474,2527.3,2527.0,0.7548]
[1746965378565,3.95688474,2527.3,2525.7,6.15]
[1746965378566,3.95736592,2527.0,2526.7,2.675]
[1746965378749,3.95736592,2527.0,2526.6,0.7548]
[1746965378953,0.55,2527.1,2526.3,3.4298]
[1746965379273,3.95769755,2526.8,2526.3,3.4298]
[1746965379430,4.7612616,2527.2,2526.3,3.77278]
[1746965379431,0.8043,2527.2,2526.3,3.77278]
[1746965379630,3.95742249,2526.9,2526.3,3.77278]
[1746965380242,3.95760994,2526.8,2526.3,3.4298]
[1746965380454,3.95710498,2527.1,2526.3,0.7548]
[1746965380758,3.95765866,2526.8,2526.3,0.7548]
[1746965381132,0.55,2527.1,2526.3,0.7548]
[1746965381452,3.95751107,2526.9,2526.3,0.7548]
[1746965381653,3.95759546,2526.8,2526.3,0.7548]
[1746965381872,0.55,2526.6,2525.9,0.7548]
[1746965382071,3.95804472,2526.5,2526.0,2.676]
[1746965382423,3.95835807,2526.3,2525.7,0.7548]
[1746965382628,2.20083581,2526.3,2525.7,0.7548]
[1746965383466,6.15926594,2526.3,2525.7,0.7548]
[1746965383975,18.05,2526.4,2525.7,0.7548]
[1746965384129,18.05,2526.4,2525.7,0.79438789]
[1746965384334,10.05,2526.4,2525.7,0.79438789]
[1746965384762,0.8043,2526.7,2525.7,0.79438789]
[1746965385076,10.05,2526.8,2525.8,0.7815]
[1746965385232,10.05,2526.8,2526.0,0.7815]
[1746965385737,3.95795634,2526.6,2526.0,0.7815]
[1746965385948,4.74864975,2526.7,2526.0,3.4585]
[1746965386171,3.95814843,2526.5,2526.0,3.4585]
[1746965386357,3.95795747,2526.6,2526.0,3.4585]
[1746965386666,0.87065894,2526.5,2526.0,3.4585]
[1746965387963,10.05,2526.8,2526.0,3.4585]
[1746965388400,18.05,2526.8,2526.0,3.4585]
[1746965389361,18.05,2526.8,2526.1,0.7645]
[1746965390292,10.05,2526.8,2526.1,0.7645]
[1746965391075,3.95781556,2526.7,2526.1,0.7645]
[1746965391279,1.40078156,2526.6,2526.2,2.677]
[1746965391505,1.40078156,2526.6,2526.1,0.7645]
[1746965391506,5.35869925,2526.6,2526.1,0.7645]
[1746965391801,1.40078156,2526.6,2526.1,0.7645]
[1746965392862,8.0,2526.7,2526.1,0.7645]
[1746965394298,11.95778942,2526.7,2526.1,0.7645]
[1746965394664,10.05,2526.8,2526.1,0.7645]
[1746965394895,10.05,2526.8,2526.3,0.817]
[1746965395407,3.95691386,2527.3,2526.3,0.817]
[1746965395580,0.47123139,2527.2,2526.3,0.817]
[1746965395781,8.0,2527.2,2526.3,0.817]
[1746965396167,10.5260801,2527.5,2526.4,0.0395741]
[1746965396368,13.2020801,2527.5,2526.5,0.817]
[1746965396597,13.2020801,2527.5,2526.7,0.817]
[1746965397716,10.05,2527.5,2526.9,0.8116]
[1746965397924,3.95663654,2527.4,2526.9,0.8116]
[1746965398119,10.05,2527.4,2525.9,0.8116]
[1746965398277,3.95708194,2527.2,2526.5,0.8116]
[1746965398475,18.05,2527.4,2526.5,0.8116]
[1746965398675,20.38566401,2527.4,2526.5,1.16046]
[1746965398879,24.34239969,2527.4,2526.5,1.16046]
[1746965399195,3.95679625,2527.3,2526.5,1.16046]
[1746965399720,24.34238894,2527.4,2526.5,1.16046]
[1746965400215,20.38566401,2527.4,2526.5,1.16046]
[1746965400413,20.38566401,2527.4,2526.6,1.195346]
[1746965400615,24.34235332,2527.4,2526.6,1.195346]
[1746965401023,20.38566401,2527.4,2526.7,0.8116]
[1746965401485,8.0,2527.4,2526.7,0.8116]
[1746965402517,2.676,2527.5,2526.7,0.8116]
[1746965403219,6.63255957,2527.5,2526.7,0.8116]
[1746965403622,3.95670437,2527.4,2526.7,0.8116]
[1746965403827,3.95655269,2527.5,2526.7,0.8116]
[1746965403994,14.63239002,2527.6,2526.7,0.8116]
[1746965404180,8.0,2527.5,2526.7,0.8116]
[1746965404834,10.05,2527.7,2526.7,0.8116]
[1746965404999,8.0,2527.6,2526.8,0.03957101]
[1746965405206,8.0,2527.6,2526.9,0.8116]
[1746965406100,8.0,2527.7,2527.1,0.8116]
[1746965407298,10.05,2527.8,2527.1,0.35271681]
[1746965407503,10.05,2527.8,2527.2,0.8116]
[1746965407900,11.95553973,2528.1,2527.2,0.8116]
[1746965408106,8.0,2528.1,2527.4,0.7758]
[1746965408618,11.95565944,2528.1,2527.4,0.7758]
[1746965408823,2.20056594,2528.0,2527.4,0.7758]
[1746965409337,11.95561535,2528.1,2527.4,0.7758]
[1746965409532,3.95574579,2528.0,2527.4,0.7758]
[1746965409689,8.0,2528.1,2527.4,0.7758]
[1746965409894,3.95607894,2527.8,2527.4,3.4508]
[1746965410122,3.95593562,2527.9,2527.4,3.4508]
[1746965410320,4.74723056,2527.8,2527.4,0.7758]
[1746965410533,3.95639007,2527.6,2527.2,3.4508]
[1746965410756,3.95625184,2527.7,2527.2,0.7758]
[1746965410913,3.95632908,2527.6,2527.2,0.7758]
[1746965411309,5.5711135,2527.8,2525.6,6.15]
[1746965411310,3.9565018,2527.5,2525.6,6.15]
[1746965411502,3.95679183,2527.3,2527.0,0.7758]
[1746965411705,3.95695128,2527.2,2527.0,0.7758]
[1746965412044,3.95686081,2527.3,2527.0,0.7758]
[1746965412714,11.95668933,2527.4,2527.0,0.7758]
[1746965413105,12.89939767,2527.4,2527.0,0.7758]
[1746965413301,10.05,2527.7,2527.1,0.03957469]
[1746965413609,10.05,2527.7,2527.2,3.4672]
[1746965413810,3.95657926,2527.5,2527.2,3.4672]
[1746965414030,10.05,2527.7,2527.2,3.4672]
[1746965414243,1.48178642,2527.6,2527.2,3.4672]
[1746965414441,1.48178642,2527.6,2527.2,0.7922]
[1746965415365,5.43811809,2527.6,2527.2,0.7922]
[1746965415646,1.48178642,2527.6,2527.2,0.7922]
[1746965415962,10.05,2527.7,2527.2,0.7922]
[1746965417026,10.05,2527.9,2527.2,0.7922]
[1746965417232,3.95570962,2528.0,2527.2,0.7922]
[1746965418309,8.0,2528.0,2527.2,0.7922]
[1746965419007,11.9557315,2528.0,2527.2,0.7922]
[1746965419207,2.20057315,2527.9,2527.2,0.7922]
[1746965421160,10.05,2528.1,2527.3,0.03956584]
[1746965421358,14.0055686,2528.1,2527.4,0.7507]
[1746965421855,3.95571817,2528.0,2527.4,0.7507]
[1746965422056,3.95577617,2528.0,2527.4,0.7507]
[1746965422353,10.05,2528.1,2527.4,0.7507]
[1746965422556,1.005,2528.0,2527.4,0.7507]
[1746965422926,4.96075512,2528.0,2527.4,0.7507]
[1746965423222,3.95590263,2527.9,2527.4,0.7507]
[1746965423659,1.005,2528.0,2527.4,0.7507]
[1746965423828,9.005,2528.0,2527.4,0.7507]
[1746965424161,2.30106268,2527.9,2527.4,0.7507]
[1746965425019,6.25696837,2527.9,2527.4,0.7507]
[1746965425259,6.25692667,2527.9,2527.4,0.7507]
[1746965425462,3.95616568,2527.7,2526.5,0.8041]
[1746965425627,3.95708093,2527.2,2526.6,2.675]
[1746965426030,0.55,2527.4,2526.7,0.8041]
[1746965426652,8.0,2527.5,2526.7,0.8041]
[1746965426956,3.95689101,2527.3,2526.7,0.8041]
[1746965427361,3.95695106,2527.2,2526.7,0.8041]
[1746965427558,4.74830969,2527.2,2526.7,0.8041]
[1746965427883,3.95745055,2526.9,2526.7,0.8041]
[1746965428067,3.9573374,2527.0,2526.7,0.8041]
[1746965428248,10.84135863,2527.2,2526.7,0.8041]
[1746965428454,14.79838983,2527.2,2526.7,0.8041]
[1746965428663,1.47983898,2527.1,2526.7,0.8041]
[1746965428853,5.43701177,2527.1,2526.7,0.8041]
[1746965429037,1.47983898,2527.1,2526.7,0.8041]
[1746965430070,10.05,2527.2,2526.7,0.84367849]
[1746965430276,10.05,2527.7,2526.7,0.84367849]
[1746965430476,3.95616837,2527.7,2526.7,0.8041]
[1746965430675,3.95616837,2527.7,2526.8,0.03956863]
[1746965430991,2.59620698,2527.7,2526.9,0.8041]
[1746965431142,8.0,2527.7,2527.1,0.8041]
[1746965431345,10.05,2527.8,2527.2,3.4791]
[1746965431543,10.05,2528.2,2527.3,0.8041]
[1746965431743,3.95538804,2528.2,2527.5,0.8041]
[1746965432178,0.17055918,2528.1,2527.5,0.8041]
[1746965432576,14.00530485,2528.3,2527.5,1.15586605]
[1746965432749,0.16313466,2528.0,2527.5,1.15586605]
[1746965432958,8.0,2528.2,2527.5,1.15586605]
[1746965433277,0.16310171,2528.1,2527.5,1.15586605]
[1746965434168,0.16310171,2528.1,2527.6,0.8041]
[1746965434681,0.16511105,2528.0,2527.6,0.8041]
[1746965434894,3.95524113,2528.3,2527.6,0.8041]
[1746965435086,0.16511105,2527.9,2527.6,0.8041]
[1746965435256,3.95524113,2528.3,2527.6,0.8041]
[1746965435465,0.16511105,2527.8,2527.6,0.8041]
[1746965435656,3.9550704,2528.4,2527.6,0.8041]
[1746965435995,0.79100418,2528.3,2527.6,0.84365836]
[1746965436290,0.16511105,2528.3,2527.6,0.8041]
[1746965436481,3.95541885,2528.2,2527.7,2.674]
[1746965436657,0.7539,2528.4,2527.6,3.4781]
[1746965436990,0.55,2528.5,2527.2,0.769]
[1746965436991,8.0,2527.8,2527.2,0.769]
[1746965437162,0.7539,2527.9,2527.2,0.769]
[1746965437163,11.95633937,2527.6,2527.2,0.769]
[1746965437495,4.12139344,2527.5,2527.2,0.769]
[1746965437665,0.8063,2527.3,2526.6,0.7558]
[1746965437865,3.95714766,2527.1,2526.6,0.7558]
[1746965438070,3.95726157,2527.0,2526.6,0.7558]
[1746965438469,0.16481931,2526.9,2526.6,0.7558]
[1746965438769,6.63017803,2527.1,2526.6,0.7558]
[1746965438770,2.673,2527.1,2526.6,0.7558]
[1746965438974,0.16481931,2526.8,2526.6,0.7558]
[1746965439170,2.673,2527.1,2526.6,0.7558]
[1746965439894,0.16481931,2527.0,2526.6,0.7558]
[1746965440461,2.674,2527.1,2526.6,0.7558]
[1746965440663,0.16481931,2526.9,2526.6,0.7558]
[1746965440895,2.674,2527.1,2526.6,0.7558]
[1746965441078,0.16481931,2526.8,2526.6,0.7558]
[1746965441280,2.674,2527.1,2526.6,0.7558]
[1746965441592,2.673,2527.2,2526.6,0.7558]
[1746965441901,0.14682173,2527.1,2526.6,0.7558]
[1746965442483,12.724,2527.3,2526.6,0.7558]
[1746965442811,12.723,2527.3,2526.8,0.7558]
[1746965442972,0.14674865,2527.2,2526.8,0.7558]
[1746965443395,10.05,2527.3,2526.8,0.7558]
[1746965443607,0.14674865,2527.2,2526.8,0.7558]
[1746965443766,10.05,2527.3,2526.8,0.7558]
[1746965443969,0.14674865,2527.2,2526.8,0.7558]
[1746965444274,10.05,2527.3,2526.8,1.09878]
[1746965444474,0.14693134,2527.1,2526.8,0.7558]
[1746965444793,0.14693134,2527.0,2526.8,0.7558]
[1746965445001,14.00680869,2527.3,2526.8,0.7558]
[1746965445171,0.14693134,2527.2,2526.8,0.7558]
[1746965445374,10.05,2527.3,2526.8,0.7558]
[1746965445595,0.14693134,2527.2,2526.8,0.7558]
[1746965445792,14.00691571,2527.3,2526.8,0.7558]
[1746965445984,0.14693134,2527.2,2526.8,0.7558]
[1746965446186,10.05,2527.3,2526.8,0.7558]
[1746965446400,0.14693134,2527.2,2526.8,0.7558]
[1746965446585,10.05,2527.3,2526.8,0.7558]
[1746965446903,0.14693134,2527.2,2526.8,0.7558]
[1746965447084,0.14693134,2527.2,2527.0,0.7825]
[1746965447284,10.05,2527.5,2527.0,0.7825]
[1746965447479,0.14685826,2527.1,2527.0,0.7825]
[1746965447697,10.05,2527.5,2527.0,0.7825]
[1746965447895,0.14685826,2527.1,2527.0,0.7825]
[1746965448074,10.05,2527.5,2527.0,0.7825]
[1746965448272,0.14685826,2527.1,2527.0,0.7825]
[1746965448473,10.05,2527.5,2527.0,0.7825]
[1746965449004,0.14722362,2527.4,2527.0,0.7825]
[1746965449602,1.56258641,2527.4,2527.0,0.7825]
[1746965449920,3.95698629,2527.2,2526.8,0.7795]
[1746965450481,0.14722362,2527.1,2526.8,0.7795]
[1746965452813,0.14722362,2527.0,2526.8,0.7795]
[1746965453017,3.95687599,2527.3,2526.8,0.7795]
[1746965453217,0.14722362,2527.2,2526.8,0.7795]
[1746965453417,6.77056675,2527.3,2526.8,0.7795]
[1746965453624,0.14722362,2527.2,2526.8,0.7795]
[1746965453986,6.77056675,2527.3,2526.8,0.7795]
[1746965454181,0.14693129,2527.2,2526.8,0.7795]
[1746965454383,3.95702109,2527.2,2526.8,0.7795]
[1746965454591,0.14693129,2527.1,2526.8,0.7795]
[1746965455217,6.77056183,2527.3,2526.8,0.7795]
[1746965455386,0.14693129,2527.2,2526.8,0.7795]
[1746965455588,2.81369076,2527.3,2526.8,0.7795]
[1746965455816,0.14693129,2527.2,2526.8,0.7795]
[1746965456031,2.673,2527.4,2526.8,0.81907462]
[1746965456318,0.14693129,2527.1,2526.8,0.81907462]
[1746965456622,2.673,2527.9,2526.8,0.7795]
[1746965456822,0.14667554,2527.8,2526.8,0.7795]
[1746965457019,0.14667554,2527.8,2527.0,0.7763]
[1746965457324,0.14667554,2527.8,2527.2,0.7763]
[1746965457525,0.14667554,2527.8,2527.4,0.7763]
[1746965457722,8.0,2528.4,2527.4,0.7763]
[1746965457914,0.13638047,2527.7,2527.4,0.7763]
[1746965458089,10.05,2528.6,2527.6,0.7984]
[1746965458290,4.25142124,2528.8,2527.5,0.34503]
[1746965458291,2.673,2528.7,2527.8,0.7984]
[1746965458598,10.05,2528.8,2527.5,0.34503]
[1746965458599,0.13769694,2528.6,2528.0,0.7984]
[1746965458803,16.67746747,2528.8,2528.0,0.7984]
[1746965459129,0.13769694,2528.7,2528.0,0.7984]
[1746965459297,5.77383104,2528.7,2528.0,0.7984]
[1746965459728,1.81921338,2528.7,2528.0,0.7984]
[1746965460033,0.13769694,2528.7,2528.2,0.7984]
[1746965461007,0.13769694,2528.7,2528.2,0.8379498]
[1746965461417,0.13769694,2528.7,2528.2,0.7984]
[1746965461749,4.09232289,2528.7,2528.2,0.7984]
[1746965461899,3.95475757,2528.6,2528.0,0.7984]
[1746965462222,1.3530851,2528.5,2528.0,0.7984]
[1746965463035,0.14383965,2528.5,2528.1,0.03955357]
[1746965463334,0.14383965,2528.5,2528.0,0.7984]
[1746965463510,14.00450839,2528.8,2528.0,0.7984]
[1746965463833,10.05,2528.8,2528.1,0.03955091]
[1746965464143,0.14376656,2528.7,2528.2,0.7984]
[1746965465244,0.14376656,2528.7,2528.0,0.03955091]
[1746965465245,3.95540225,2528.2,2527.5,3.4714]
[1746965465409,2.671,2528.4,2527.5,3.4714]
[1746965465604,4.098823,2528.3,2527.6,0.7984]
[1746965465937,3.95578443,2528.0,2527.6,0.7984]
[1746965466442,0.14351072,2527.9,2527.6,0.7984]
[1746965466610,0.14351072,2527.9,2527.6,1.14949608]
[1746965466811,3.95545815,2528.2,2527.6,1.14949608]
[1746965467011,0.14267002,2528.1,2527.7,0.03956073]
[1746965467241,3.95478647,2528.6,2527.8,0.7984]
[1746965467539,0.14267002,2528.0,2527.9,0.83235579]
[1746965467740,2.671,2528.6,2527.9,0.83235579]
[1746965468250,0.13055253,2528.5,2527.9,0.83235579]
[1746965468563,3.95415832,2529.0,2527.9,0.7928]
[1746965468922,0.13088253,2528.9,2527.9,0.7928]
[1746965469123,4.08521062,2528.9,2527.9,0.7928]
[1746965469316,3.95421469,2529.0,2527.9,0.7928]
[1746965469808,0.13088253,2528.9,2527.9,0.7928]
[1746965471242,0.13088253,2528.9,2528.0,0.83234595]
[1746965471403,0.13088253,2528.9,2528.2,0.7928]
[1746965471610,3.95399117,2529.1,2528.4,0.7928]
[1746965471843,0.13088253,2529.0,2528.4,0.7928]
[1746965472634,3.9530379,2529.7,2528.6,0.8057]
[1746965472843,0.12564261,2529.6,2528.8,0.8057]
[1746965473037,4.07892261,2529.6,2528.9,0.03953658]
[1746965473353,3.95382682,2529.2,2528.8,0.8057]
[1746965473649,0.1266679,2529.1,2528.9,2.671]
[1746965473849,3.95346837,2529.5,2528.9,2.671]
[1746965474049,0.1266679,2529.0,2528.9,2.671]
[1746965474227,3.95357408,2529.4,2528.9,2.671]
[1746965474549,3.95393827,2529.2,2528.8,0.8057]
[1746965474727,3.95381938,2529.2,2528.4,0.8057]
[1746965474925,3.95440523,2528.9,2528.4,0.8057]
[1746965475525,0.12718046,2528.8,2528.4,0.8057]
[1746965475843,3.95483983,2528.6,2528.4,0.8057]
[1746965476014,3.95503258,2528.5,2528.0,2.67]
[1746965476217,0.94236234,2528.4,2527.7,0.8057]
[1746965476441,3.95552731,2528.2,2527.7,0.8057]
[1746965476651,3.95525647,2528.3,2527.7,0.8057]
[1746965476814,0.12370126,2528.1,2527.7,0.8057]
[1746965477248,4.77157809,2528.4,2527.7,0.8057]
[1746965477552,0.12370126,2528.0,2527.7,1.15722608]
[1746965477718,3.95538186,2528.3,2527.7,1.15722608]
[1746965477917,0.12370126,2527.9,2527.7,1.15722608]
[1746965478148,3.95538186,2528.3,2527.7,1.15722608]
[1746965478656,0.12370126,2528.2,2527.7,1.15722608]
[1746965479021,3.95522683,2528.3,2527.7,0.8057]
[1746965479223,0.12370126,2528.2,2527.7,0.8057]
[1746965480043,3.9550704,2528.4,2527.7,0.8057]
[1746965480238,0.12370126,2528.1,2527.7,0.8057]
[1746965480444,3.9550704,2528.4,2527.7,0.8057]
[1746965480655,0.12370126,2528.0,2527.7,0.8057]
[1746965480950,5.911922,2528.4,2527.7,0.8057]
[1746965481156,0.12370126,2527.9,2527.7,0.8057]
[1746965481356,5.911922,2528.4,2527.7,0.8057]
[1746965481538,0.12370126,2527.8,2527.7,0.84525864]
[1746965481733,14.00495487,2528.5,2527.7,1.15722586]
[1746965482249,4.07758054,2528.4,2527.7,1.15722586]
[1746965482457,0.12249209,2528.4,2527.7,1.15722586]
[1746965482755,0.12249209,2528.4,2527.8,0.82765766]
[1746965483047,0.12249209,2528.4,2527.8,0.7881]
[1746965483259,0.12249209,2528.4,2527.8,0.82764791]
[1746965483465,10.05,2529.3,2528.0,0.7881]
[1746965483666,1.9342462,2529.3,2528.2,0.7881]
[1746965483846,3.95405718,2529.1,2528.2,3.4571]
[1746965484161,3.95493252,2528.5,2528.2,3.4591]
[1746965484331,3.95493252,2528.5,2528.2,0.7881]
[1746965484531,4.06656041,2528.4,2528.2,0.7881]
[1746965484740,0.11143409,2528.4,2528.2,0.7881]
[1746965485070,2.669,2528.8,2528.2,0.7881]
[1746965485219,0.11191081,2528.3,2528.2,0.7881]
[1746965485425,3.95483507,2528.6,2528.2,0.7881]
[1746965485665,0.11191081,2528.5,2528.2,0.7881]
[1746965485865,4.06685852,2528.5,2528.2,0.7881]
[1746965486037,0.11191081,2528.5,2528.2,0.7881]
[1746965486650,4.06683319,2528.5,2528.2,0.7881]
[1746965486965,3.95517093,2528.4,2528.2,0.7881]
[1746965487137,4.06689007,2528.5,2528.2,0.7881]
[1746965487333,1.66841246,2528.5,2527.9,0.7881]
[1746965487534,3.95562014,2528.1,2527.6,2.671]
[1746965487748,3.95562014,2528.1,2527.6,3.499]
[1746965488048,4.06684114,2528.0,2527.6,3.499]
[1746965488639,4.06694183,2528.0,2527.6,3.499]
[1746965489550,0.11114069,2528.0,2527.6,3.499]
[1746965489865,4.06686529,2528.0,2527.6,3.499]
[1746965490552,4.06691019,2528.0,2527.6,3.499]
[1746965491266,3.95588354,2527.9,2527.6,0.828]
[1746965491463,4.06541023,2527.9,2527.6,0.828]
[1746965491671,4.06541023,2527.9,2527.4,2.671]
[1746965491974,3.9562476,2527.7,2527.4,2.671]
[1746965492630,0.10952669,2527.6,2527.4,2.671]
[1746965494130,3.95626799,2527.7,2527.4,2.671]
[1746965494465,0.10783894,2527.6,2527.4,2.671]
[1746965494766,3.95647873,2527.5,2527.4,2.671]
[1746965494965,4.75853121,2527.5,2527.0,3.4329]
[1746965495173,4.06431767,2527.5,2527.0,3.4329]
[1746965495367,3.95663527,2527.4,2527.0,3.4329]
[1746965495670,3.9567088,2527.4,2527.0,0.7619]
[1746965496035,0.10783894,2527.3,2527.0,0.7619]
[1746965496236,1.86703523,2528.0,2527.1,0.039571]
[1746965496237,8.7979,2528.0,2527.1,0.039571]
[1746965496437,3.95615336,2527.8,2527.1,0.039571]
[1746965496638,3.95600917,2527.8,2527.1,0.03956676]
[1746965496837,4.06404488,2527.7,2527.0,0.7619]
[1746965497038,8.0,2527.5,2527.0,0.7619]
[1746965497239,3.95655044,2527.5,2527.0,0.7619]
[1746965497438,0.10783894,2527.4,2527.0,0.7619]
[1746965500162,8.0,2527.2,2527.0,0.7619]
[1746965500473,8.0,2527.5,2527.0,0.7619]
[1746965500679,0.10582066,2527.1,2527.0,0.7619]
[1746965500976,8.0,2527.3,2527.0,0.7619]
[1746965501153,0.10582066,2527.1,2527.0,0.7619]
[1746965501477,10.05,2527.6,2527.0,0.7619]
[1746965501679,0.10582066,2527.1,2527.0,0.7619]
[1746965501840,10.05,2527.6,2527.0,1.10499]
[1746965502181,0.10582066,2527.5,2527.1,2.669]
[1746965503390,0.10582066,2527.5,2527.1,2.70856911]
[1746965503601,0.10582066,2527.5,2527.1,2.669]
[1746965504183,4.06231449,2527.5,2527.1,2.669]
[1746965504688,0.10582066,2527.5,2527.1,2.669]
[1746965504995,0.10582066,2527.5,2527.1,3.08596811]
[1746965506299,0.10582066,2527.5,2527.1,3.046399]
[1746965506469,0.10582066,2527.5,2527.1,3.08596499]
[1746965506674,0.10582066,2527.5,2527.2,0.7607]
[1746965507699,0.10453613,2527.4,2527.2,0.80026584]
[1746965507865,11.95586702,2527.9,2527.3,0.38466648]
[1746965508065,0.10453613,2527.3,2527.2,0.80026584]
[1746965508266,11.95589063,2527.9,2527.2,0.80026584]
[1746965508589,0.10453613,2527.3,2527.2,0.80026584]
[1746965508786,11.95589063,2527.9,2527.2,0.80026584]
[1746965509018,0.10453613,2527.3,2527.2,0.7607]
[1746965509164,3.95631913,2527.7,2527.2,0.7607]
[1746965509364,0.10501327,2527.3,2527.2,0.7607]
[1746965509880,3.95626816,2527.7,2527.2,0.7607]
[1746965510083,0.10501327,2527.3,2527.2,0.7607]
[1746965510403,8.0,2527.9,2527.1,2.669]
[1746965510599,0.10501327,2527.3,2527.0,2.669]
[1746965510767,3.9567331,2527.4,2527.0,2.669]
[1746965510970,0.10501327,2527.2,2527.0,2.669]
[1746965511171,3.9567331,2527.4,2527.0,2.669]
[1746965511367,0.10501327,2527.1,2527.0,2.669]
[1746965511572,3.9567331,2527.4,2527.0,2.669]
[1746965512088,0.10501327,2527.3,2527.0,2.669]
[1746965513177,4.0618088,2527.3,2527.0,2.669]
[1746965513478,4.36320713,2527.2,2526.7,0.7811]
[1746965513810,3.95702625,2527.2,2526.7,0.7811]
[1746965514111,0.10350827,2527.1,2526.7,0.7811]
[1746965514886,4.06067317,2527.1,2526.7,0.7811]
[1746965515087,3.9575207,2526.9,2526.6,2.669]
[1746965515611,3.95810896,2526.5,2526.0,2.669]
[1746965515783,3.95796545,2526.6,2526.0,3.717]
[1746965515984,0.09991014,2526.4,2526.0,3.717]
[1746965516190,3.95804962,2526.5,2526.0,3.717]
[1746965516525,4.75058035,2526.7,2526.0,3.717]
[1746965516684,0.09991014,2526.4,2526.0,3.717]
[1746965516884,3.95808505,2526.5,2526.0,3.717]
[1746965517112,0.09991014,2526.3,2526.0,3.4501]
[1746965517312,3.95818337,2526.5,2526.0,3.4501]
[1746965517513,0.09991014,2526.2,2526.0,3.4501]
[1746965517720,3.95818337,2526.5,2526.0,3.4501]
[1746965517917,0.09991014,2526.1,2526.0,3.4501]
[1746965518121,3.95818337,2526.5,2526.0,3.4501]
[1746965518423,0.09991014,2526.1,2526.0,3.4501]
[1746965518917,3.95818337,2526.5,2526.0,3.4501]
[1746965519120,0.09991014,2526.1,2526.0,3.4501]
[1746965519431,3.95818337,2526.5,2526.0,3.4501]
[1746965519637,0.09991014,2526.1,2526.0,2.669]
[1746965519836,3.95821564,2526.4,2526.0,2.669]
[1746965520006,0.0982573,2526.1,2526.0,2.669]
[1746965520210,0.7516,2526.3,2526.0,2.669]
[1746965520838,4.05679028,2526.2,2526.0,2.669]
[1746965521171,3.95867146,2526.1,2525.5,2.67]
[1746965521710,0.0979634,2526.0,2525.5,2.67]
[1746965522036,4.05679287,2526.0,2525.5,2.67]
[1746965523629,0.0979634,2526.0,2525.5,2.67]
[1746965524021,4.05681821,2526.0,2525.5,2.67]
[1746965524222,0.0979634,2526.0,2525.5,2.67]
[1746965524422,4.05681224,2526.0,2525.5,2.67]
[1746965524947,0.0979634,2526.0,2525.5,2.67]
[1746965525247,4.05686513,2526.0,2525.5,2.67]
[1746965525445,0.0979634,2526.0,2525.5,2.67]
[1746965525635,0.0979634,2526.0,2525.5,3.01211]
[1746965525833,0.0979634,2526.0,2525.6,0.03959276]
[1746965526145,0.0979634,2526.0,2525.5,3.01211]
[1746965526146,0.0979634,2525.9,2525.5,3.01211]
[1746965526309,7.37696214,2526.3,2525.5,3.01211]
[1746965526513,0.0979634,2525.8,2525.6,0.03959056]
[1746965526842,7.37696927,2526.3,2525.6,0.38028006]
[1746965527347,0.0946939,2526.2,2525.6,0.38028006]
[1746965527647,0.0946939,2526.2,2525.7,0.7685]
[1746965529232,3.95843543,2526.3,2525.7,0.7685]
[1746965529436,4.05329132,2526.2,2525.7,0.7685]
[1746965530041,0.0946939,2526.2,2525.7,0.7685]
[1746965530431,4.05321108,2526.2,2525.7,0.7685]
[1746965530952,3.95872585,2526.1,2525.5,3.4385]
[1746965531163,0.55,2526.1,2525.3,3.4365]
[1746965531324,3.95899979,2525.9,2525.3,3.4365]
[1746965531834,4.0526794,2525.8,2525.3,3.4365]
[1746965532016,0.09351811,2525.8,2525.3,3.4365]
[1746965533455,3.958923,2526.0,2525.3,3.4365]
[1746965533639,4.99041027,2526.0,2525.3,3.4365]
[1746965533840,0.09351811,2525.9,2525.3,3.4365]
[1746965535726,3.958873,2526.0,2525.3,3.4365]
[1746965535963,0.09351811,2525.8,2525.3,3.4365]
[1746965536257,0.09351811,2525.7,2525.3,3.4365]
[1746965536426,3.95883928,2526.0,2525.3,3.4365]
[1746965536627,6.62571659,2526.1,2525.3,3.4365]
[1746965536826,3.95883149,2526.0,2525.3,3.4365]
[1746965537140,0.09351811,2525.9,2525.3,3.4365]
[1746965537335,0.8251,2525.8,2525.1,0.807]
[1746965537542,3.95929841,2525.7,2525.1,0.807]
[1746965537846,0.96786589,2525.7,2525.1,0.807]
[1746965538235,0.09351811,2525.7,2525.1,0.807]
[1746965538443,0.09351811,2525.7,2525.1,0.84659885]
[1746965538641,7.44997456,2526.0,2525.1,0.84659885]
[1746965538866,0.09351811,2525.9,2525.1,0.84659885]
[1746965539765,4.0525727,2525.9,2525.1,0.84659885]
[1746965539963,3.95920231,2525.8,2525.1,0.84659885]
[1746965540169,3.95926236,2525.8,2525.1,0.84659885]
[1746965540461,0.09351811,2525.7,2525.1,0.84659885]
[1746965540667,0.09351811,2525.7,2525.1,0.807]
[1746965541435,4.05284525,2525.7,2525.1,0.807]
[1746965541637,5.06957968,2525.7,2525.1,0.807]
[1746965542075,1.11025254,2525.7,2525.1,0.807]
[1746965542278,4.78468602,2525.6,2525.0,2.668]
[1746965542575,0.09112917,2525.5,2525.0,2.668]
[1746965543074,4.0507677,2525.5,2525.0,2.668]
[1746965543375,0.42190837,2525.4,2525.0,2.668]
[1746965543544,4.47228744,2525.4,2525.0,2.668]
[1746965543976,3.96012296,2525.2,2525.0,2.668]
[1746965544179,3.95998306,2525.3,2525.0,2.668]
[1746965544469,4.38176442,2525.4,2525.0,2.668]
[1746965544770,1.92971659,2525.3,2525.0,2.668]
[1746965545069,5.88968147,2525.3,2525.0,2.668]
[1746965545881,1.92971659,2525.3,2525.0,2.668]
[1746965546059,0.09057776,2525.3,2525.0,2.668]
[1746965548373,3.96031408,2525.1,2524.4,0.87200415]
[1746965548579,4.05056773,2525.3,2524.4,0.8324]
[1746965548869,0.09057776,2525.2,2524.2,14.245]
[1746965549078,0.09057776,2525.2,2524.6,0.8324]
[1746965549839,0.09057776,2525.2,2524.7,2.668]
[1746965550946,0.09057776,2525.2,2524.7,2.7076046]